bitfinex-derivatives/quotes_ETHF0:USTF0_20250912
["timestamp","ask_amount","ask_price","bid_price","bid_amount"]
[1757704305694,0.21984754,4625.1,4625.0,0.9128]
[1757704307204,0.219,4625.2,4625.0,0.624]
[1757704307389,0.319,4625.2,4625.1,0.4945]
[1757704307701,0.1312,4625.1,4625.0,0.1]
[1757704307892,0.76782331,4625.1,4625.0,0.1]
[1757704308087,0.76782331,4625.1,4625.0,0.4015]
[1757704308297,0.76782331,4625.1,4625.0,0.1]
[1757704308497,0.73662331,4625.1,4625.0,0.9106]
[1757704308698,0.95562331,4625.1,4625.0,0.9106]
[1757704309802,1.17543516,4625.1,4625.0,0.9106]
[1757704310701,1.07543516,4625.1,4625.0,0.9106]
[1757704311996,0.85643516,4625.1,4625.0,0.9106]
[1757704312304,0.85337958,4625.1,4625.0,0.9106]
[1757704313606,0.85334708,4625.1,4625.0,0.9106]
[1757704313803,0.90334708,4625.1,4625.0,0.9106]
[1757704314003,0.95334708,4625.1,4625.0,0.9106]
[1757704317705,0.85334708,4625.1,4625.0,0.9106]
[1757704318798,0.90344708,4625.1,4625.0,0.9106]
[1757704320105,0.95354708,4625.1,4625.0,0.9106]
[1757704320904,0.85334708,4625.1,4625.0,0.9106]
[1757704322104,0.86454708,4625.1,4625.0,0.9106]
[1757704328211,0.91464708,4625.1,4625.0,0.9177]
[1757704328404,0.96474708,4625.1,4625.0,0.9177]
[1757704329810,0.86454708,4625.1,4625.0,0.9177]
[1757704334906,0.85011944,4625.1,4625.0,0.9177]
[1757704339202,0.95031944,4625.1,4625.0,0.9177]
[1757704340021,0.90021944,4625.1,4625.0,0.9177]
[1757704340707,0.95031944,4625.1,4625.0,0.9177]
[1757704342408,0.95032523,4625.1,4625.0,0.9177]
[1757704345016,0.9534096,4625.1,4625.0,0.9177]
[1757704347719,0.75110768,4625.1,4625.0,0.9177]
[1757704347919,0.95344177,4625.1,4625.0,0.9177]
[1757704352724,0.95344177,4625.1,4625.0,0.7223]
[1757704352935,0.98434177,4625.1,4625.0,0.7223]
[1757704353620,0.95344177,4625.1,4625.0,0.7223]
[1757704353822,0.95344177,4625.1,4624.1,0.2956]
[1757704353823,0.0495,4624.2,4624.1,0.2956]
[1757704354035,0.1923,4623.1,4623.0,0.6212]
[1757704354219,0.388,4623.1,4623.0,0.6212]
[1757704354426,1.02819822,4623.1,4623.0,0.6212]
[1757704354926,0.83249822,4623.1,4623.0,0.6212]
[1757704355127,0.23099168,4623.1,4623.0,0.6212]
[1757704356029,0.23099168,4623.1,4623.0,0.9168]
[1757704356227,0.42329168,4623.1,4623.0,0.9168]
[1757704356428,0.2035,4623.1,4623.0,0.9168]
[1757704356927,0.4230008,4623.1,4623.0,0.9168]
[1757704357725,0.2307008,4623.1,4623.0,0.9168]
[1757704358029,0.0112,4623.1,4623.0,0.9168]
[1757704358216,0.2307008,4623.1,4623.0,0.9168]
[1757704358620,0.0112,4623.1,4623.0,0.9168]
[1757704359030,0.2307008,4623.1,4623.0,0.9168]
[1757704359419,0.0112,4623.1,4623.0,0.9168]
[1757704361331,0.2035,4623.1,4623.0,0.9168]
[1757704361928,0.0112,4623.1,4623.0,0.9168]
[1757704364436,0.2035,4623.1,4623.0,0.9168]
[1757704365438,0.0112,4623.1,4623.0,0.9168]
[1757704366832,0.2035,4623.1,4623.0,0.9168]
[1757704367739,0.0112,4623.1,4623.0,0.9168]
[1757704369330,0.0648,4623.3,4623.1,0.2834]
[1757704369532,0.0648,4623.3,4623.2,0.6815]
[1757704369831,0.6244,4623.9,4623.8,0.3981]
[1757704370030,0.85625651,4623.9,4623.8,0.6815]
[1757704370239,0.851799,4623.9,4623.8,0.6815]
[1757704370439,0.6244,4623.9,4623.8,0.6815]
[1757704370736,5.12457001,4623.9,4623.5,0.2834]
[1757704371034,5.12457001,4623.9,4623.0,0.2167]
[1757704371035,0.6893,4623.2,4623.1,0.4723]
[1757704371238,0.2036,4623.2,4623.1,0.6815]
[1757704371435,0.2839,4624.4,4623.6,0.2834]
[1757704371630,0.83939943,4624.3,4624.2,0.1889]
[1757704371832,0.219,4624.4,4624.3,0.2834]
[1757704372039,0.2036,4624.6,4624.5,0.8015]
[1757704372231,0.0985,4625.5,4624.5,0.8015]
[1757704372432,1.53988403,4625.4,4625.3,0.1889]
[1757704372740,1.54406116,4625.4,4625.3,0.4723]
[1757704373442,1.54406116,4625.4,4625.3,0.6815]
[1757704374128,0.83936116,4625.4,4625.3,0.6815]
[1757704374335,1.27317117,4625.4,4625.3,0.6815]
[1757704375036,0.85057117,4625.4,4625.3,0.6815]
[1757704375342,0.0648,4625.6,4625.3,0.6815]
[1757704375343,0.219,4625.5,4625.3,0.3981]
[1757704375540,0.219,4625.5,4625.4,0.6815]
[1757704375742,0.43381009,4625.5,4625.4,0.6815]
[1757704376238,0.41841009,4625.5,4625.4,0.6815]
[1757704376439,0.43381009,4625.5,4625.4,0.6815]
[1757704376655,0.0648,4625.6,4625.5,0.5181]
[1757704376953,0.0648,4625.6,4625.5,0.8015]
[1757704379653,0.2684,4625.6,4625.5,0.8015]
[1757704379856,0.0648,4625.6,4625.5,0.8015]
[1757704380462,0.5019,4627.6,4627.0,0.1153]
[1757704380650,0.7023,4627.6,4627.5,0.5239]
[1757704380846,1.77124507,4627.6,4627.5,0.5239]
[1757704381050,1.77124507,4627.6,4627.5,0.2057]
[1757704381351,1.77124507,4627.6,4627.5,0.5077]
[1757704381853,1.46614507,4627.6,4627.5,0.8259]
[1757704382051,0.21463834,4627.6,4627.5,0.8259]
[1757704382251,0.219,4627.7,4627.6,0.7106]
[1757704382458,0.219,4627.8,4627.7,0.302]
[1757704382655,0.22,4627.8,4627.7,0.7106]
[1757704382956,0.219,4627.9,4627.8,0.7106]
[1757704383344,0.4158,4627.9,4627.8,0.7106]
[1757704386459,0.1968,4627.9,4627.8,0.7106]
[1757704388859,4.91838,4627.9,4627.5,0.302]
[1757704389063,0.21609,4627.8,4627.5,0.302]
[1757704389257,0.7023,4627.6,4627.5,0.302]
[1757704389459,0.9213,4627.6,4627.5,0.302]
[1757704389657,0.9213,4627.6,4627.5,0.5077]
[1757704389861,0.9213,4627.6,4627.5,0.8259]
[1757704389862,0.1968,4627.6,4627.5,0.8259]
[1757704390061,0.219,4627.6,4627.5,0.8259]
[1757704390759,0.219,4627.7,4627.6,0.7106]
[1757704391257,0.3051,4628.4,4627.6,0.7106]
[1757704391464,1.24865142,4628.3,4628.2,0.2057]
[1757704391657,1.55375142,4628.3,4628.2,0.5077]
[1757704392057,1.55375142,4628.3,4627.6,0.302]
[1757704392356,0.1968,4627.7,4627.6,0.7106]
[1757704394365,0.219,4628.3,4627.7,0.302]
[1757704394565,0.82940092,4628.2,4628.1,0.7106]
[1757704395066,1.33490092,4628.2,4628.1,0.302]
[1757704395259,1.24880092,4628.2,4628.1,0.5077]
[1757704395761,1.55390092,4628.2,4628.1,0.5077]
[1757704396565,5.76997092,4628.2,4627.6,0.302]
[1757704396756,0.7023,4627.7,4627.6,0.5077]
[1757704396958,1.55390092,4627.7,4627.1,0.302]
[1757704397268,1.33552659,4627.6,4627.5,0.5077]
[1757704397859,0.7023,4627.6,4627.5,0.5077]
[1757704398267,0.9213,4627.6,4627.5,0.5077]
[1757704399469,0.7023,4627.2,4627.1,0.5077]
[1757704399865,0.7023,4627.2,4627.1,0.7106]
[1757704400067,21.4316233,4627.2,4627.1,0.7106]
[1757704400270,21.63287756,4627.2,4627.1,0.7106]
[1757704400473,1.45187756,4627.2,4627.1,0.7106]
[1757704401264,1.75697756,4627.2,4627.1,0.7106]
[1757704401566,1.75697756,4627.2,4626.6,0.302]
[1757704401864,0.3972,4626.7,4626.6,0.7106]
[1757704402970,0.5241,4627.0,4626.6,0.7106]
[1757704402971,0.3051,4627.4,4626.7,0.302]
[1757704403170,0.7023,4627.4,4627.3,0.7106]
[1757704403469,1.45370919,4627.4,4627.3,0.7106]
[1757704404171,1.75880919,4627.4,4627.3,0.5077]
[1757704405171,1.75880919,4627.4,4627.3,0.7106]
[1757704405865,1.75880919,4627.4,4627.3,0.5077]
[1757704406068,1.75905339,4627.4,4627.3,0.5077]
[1757704407169,2.7037317,4627.4,4627.3,0.7106]
[1757704407472,1.05675339,4627.4,4627.3,0.7106]
[1757704408369,0.83775339,4627.4,4627.3,0.7106]
[1757704408577,0.83775339,4627.4,4627.3,4.92670999]
[1757704408873,0.83775339,4627.4,4627.3,4.7106]
[1757704409469,0.63617332,4627.4,4627.3,4.7106]
[1757704411680,0.84347332,4627.4,4627.3,4.7106]
[1757704412178,0.84347332,4627.4,4627.3,0.7106]
[1757704413579,1.33717332,4627.4,4627.3,0.7051]
[1757704413981,1.03447332,4627.4,4627.3,0.7051]
[1757704415082,0.84347332,4627.4,4627.3,0.7051]
[1757704415281,0.63617332,4627.4,4627.3,0.7051]
[1757704415470,0.82115355,4627.4,4627.3,0.7051]
[1757704415674,1.02845355,4627.4,4627.3,0.7051]
[1757704416982,0.63617332,4627.4,4627.3,4.92120999]
[1757704417186,0.0648,4628.1,4628.0,0.63]
[1757704417371,0.5748,4628.1,4628.0,0.63]
[1757704417572,0.701,4628.1,4628.0,0.4031]
[1757704417778,0.1227,4628.0,4627.0,0.1153]
[1757704417977,0.3027,4627.9,4627.1,0.2269]
[1757704418486,0.51,4627.7,4627.6,0.9698]
[1757704418679,0.51,4627.7,4627.6,1.1967]
[1757704420285,0.1227,4628.5,4627.6,1.1967]
[1757704420484,0.3027,4628.4,4627.6,1.1967]
[1757704420684,0.3417,4628.5,4627.6,1.1967]
[1757704420885,0.51,4627.7,4627.6,1.1967]
[1757704421478,0.51,4627.7,4627.6,0.63]
[1757704422180,0.701,4627.7,4627.6,0.4031]
[1757704423484,0.701,4627.7,4626.1,0.2269]
[1757704423788,0.701,4627.4,4627.3,0.2082]
[1757704424184,0.701,4627.4,4627.3,0.4031]
[1757704425680,0.701,4627.4,4627.3,0.63]
[1757704425879,0.51,4627.4,4627.3,0.63]
[1757704426992,0.3027,4627.4,4627.3,0.63]
[1757704427182,0.1227,4628.0,4627.4,0.2267]
[1757704427380,0.4819,4627.9,4627.8,0.6304]
[1757704427686,0.2847,4627.9,4627.8,0.6304]
[1757704427891,0.4819,4627.9,4627.8,0.6304]
[1757704428389,0.4819,4627.9,4627.8,0.4037]
[1757704428984,0.0648,4628.3,4627.9,0.2267]
[1757704429192,0.0648,4628.3,4628.2,0.6304]
[1757704429491,0.009,4629.1,4628.2,0.4037]
[1757704429677,0.4547,4628.9,4628.8,0.6304]
[1757704429882,0.6519,4628.9,4628.8,0.6304]
[1757704430291,0.6519,4628.9,4628.8,0.4037]
[1757704430486,0.85,4628.9,4628.8,0.4037]
[1757704431082,0.85,4628.9,4628.0,0.0577]
[1757704431287,0.85,4628.9,4628.1,0.2267]
[1757704432090,0.85,4628.9,4628.1,0.4037]
[1757704432091,0.68,4628.2,4628.1,0.4037]
[1757704432487,0.68,4628.2,4627.1,0.2267]
[1757704432796,0.2847,4627.9,4627.1,0.2267]
[1757704433785,0.1972,4627.2,4627.1,0.6304]
[1757704433986,0.4819,4627.2,4627.1,0.6304]
[1757704434792,0.68,4627.2,4627.1,0.4037]
[1757704435488,0.8046,4627.0,4626.9,0.4475]
[1757704435882,0.8046,4627.0,4626.5,0.219]
[1757704436087,0.8046,4627.0,4626.9,0.2067]
[1757704437489,0.8046,4627.0,4626.5,0.219]
[1757704437695,0.8046,4627.0,4625.4,0.219]
[1757704437696,0.2856,4626.4,4625.4,0.219]
[1757704437892,0.2856,4626.4,4625.4,0.4462]
[1757704438093,0.2856,4626.4,4625.4,0.66237]
[1757704438288,0.1203,4626.5,4625.4,0.2272]
[1757704438490,0.1203,4626.5,4625.4,0.6293]
[1757704438491,0.2028,4625.5,4625.4,0.6293]
[1757704438692,0.8145,4625.5,4625.4,0.4021]
[1757704438891,0.6087,4625.5,4625.4,0.4021]
[1757704440093,0.8145,4625.5,4625.4,0.4021]
[1757704440298,0.2856,4625.5,4625.4,0.6293]
[1757704440587,0.6087,4626.0,4625.9,0.6293]
[1757704440790,0.6942,4625.2,4625.1,0.6337]
[1757704440994,0.6942,4625.2,4625.1,0.4386]
[1757704441393,0.6942,4625.2,4623.9,0.2272]
[1757704441394,5.53706413,4625.2,4623.9,0.2868]
[1757704441597,0.6942,4624.0,4623.9,0.4819]
[1757704442197,0.8145,4624.0,4623.6,0.2868]
[1757704442689,0.1203,4624.0,4623.8,0.1951]
[1757704442896,0.6942,4623.9,4623.8,0.1951]
[1757704443492,0.6942,4623.9,4623.6,0.2868]
[1757704443696,0.2856,4623.8,4623.0,0.3868]
[1757704443894,0.6942,4623.1,4623.0,0.7889]
[1757704445001,0.6942,4623.1,4623.0,0.1]
[1757704445402,0.6942,4623.1,4623.0,0.7889]
[1757704446301,0.6942,4623.1,4623.0,0.2951]
[1757704446498,0.6942,4623.1,4623.0,0.1]
[1757704446698,0.6942,4623.1,4623.0,0.2951]
[1757704447099,0.6942,4623.1,4623.0,0.5819]
[1757704447495,0.6942,4623.1,4623.0,0.1]
[1757704456105,0.9132,4623.1,4623.0,0.5819]
[1757704456608,0.6942,4623.1,4623.0,0.5819]
[1757704456915,0.4086,4623.1,4623.0,0.9107]
[1757704457314,0.219,4623.2,4623.0,0.9107]
[1757704457513,0.2028,4623.1,4623.0,0.9107]
[1757704457811,0.2856,4623.7,4623.5,0.1218]
[1757704458003,0.2028,4623.6,4623.5,0.5239]
[1757704458409,0.6942,4623.6,4623.5,0.8107]
[1757704460315,0.4086,4623.2,4623.1,0.6889]
[1757704460613,0.6942,4623.2,4623.1,0.6889]
[1757704461320,0.6942,4623.2,4623.0,0.1]
[1757704461721,0.2856,4623.1,4623.0,0.1]
[1757704461914,0.6942,4623.1,4623.0,0.1]
[1757704462218,0.4086,4623.1,4623.0,0.7889]
[1757704462412,0.2028,4623.1,4623.0,0.9107]
[1757704462720,0.6942,4623.1,4623.0,0.7889]
[1757704465215,1.32477888,4623.1,4623.0,0.1]
[1757704466523,1.32477888,4623.1,4623.0,0.2951]
[1757704466824,1.32477888,4623.1,4623.0,0.1]
[1757704467219,0.7154,4622.7,4622.6,0.5013]
[1757704467422,0.1256,4622.5,4622.0,0.1]
[1757704467722,0.7154,4622.1,4622.0,0.1]
[1757704467921,1.34597888,4622.1,4622.0,0.1]
[1757704468125,1.34597888,4622.1,4622.0,0.8048]
[1757704468426,1.34597888,4622.1,4622.0,0.1]
[1757704468818,2.70282476,4622.1,4622.0,0.1]
[1757704469019,0.1256,4622.0,4621.2,0.3019]
[1757704469215,0.4057,4621.3,4621.2,0.2028]
[1757704469420,2.19833834,4621.3,4621.2,0.7048]
[1757704469725,1.03627888,4621.3,4621.2,0.7048]
[1757704469924,1.34597888,4621.3,4621.2,0.5047]
[1757704470126,1.79263834,4621.3,4621.1,0.2028]
[1757704470328,2.50803834,4621.2,4621.1,0.7048]
[1757704470723,2.5086036,4621.2,4621.1,0.7048]
[1757704470918,2.5086036,4621.2,4621.1,0.4029]
[1757704471223,1.54227894,4621.2,4621.0,0.1]
[1757704471424,1.54227894,4621.1,4621.0,0.1]
[1757704472234,1.54227894,4621.1,4621.0,0.3028]
[1757704473026,1.54227894,4621.1,4621.0,0.1]
[1757704473730,1.54227894,4621.1,4621.0,0.9235]
[1757704473929,1.54227894,4621.1,4621.0,0.8048]
[1757704474127,1.54227894,4621.1,4621.0,0.1]
[1757704474429,1.54227894,4621.1,4620.5,0.3019]
[1757704474430,0.4057,4620.6,4620.5,0.5047]
[1757704474617,1.34837916,4620.6,4620.5,0.5047]
[1757704475332,1.34837916,4620.6,4620.5,0.7048]
[1757704476518,0.63297916,4620.6,4620.5,0.8235]
[1757704477122,0.83187916,4620.6,4620.5,0.8235]
[1757704477526,1.34837916,4620.6,4620.5,0.8235]
[1757704477929,1.34837916,4620.6,4620.5,0.7048]
[1757704478231,1.03867916,4620.6,4620.5,0.8235]
[1757704478430,0.83187916,4620.6,4620.5,0.8235]
[1757704479121,0.53396866,4620.6,4620.5,4.92122]
[1757704479327,0.3097,4620.9,4620.5,0.92122]
[1757704479532,0.3097,4620.9,4620.6,0.21639]
[1757704479831,0.3097,4620.9,4620.2,0.21642999]
[1757704480034,0.3097,4620.9,4620.2,0.35142999]
[1757704480233,0.3097,4620.9,4620.3,0.21642]
[1757704480621,0.4353,4620.5,4620.4,0.21642]
[1757704480826,0.3097,4620.4,4620.3,0.21642]
[1757704481834,0.1256,4620.5,4620.2,0.135]
[1757704482133,0.1256,4620.5,4620.3,4.0]
[1757704482331,0.1256,4621.0,4620.3,4.0]
[1757704482332,0.3097,4620.9,4620.3,4.0]
[1757704482530,0.3097,4620.9,4620.4,0.21642]
[1757704482835,0.3097,4620.9,4620.3,0.21642]
[1757704483836,0.3097,4620.9,4620.2,0.135]
[1757704484329,0.1256,4620.5,4620.2,0.135]
[1757704484527,0.3097,4620.4,4620.3,4.0]
[1757704484831,0.3097,4620.4,4620.2,0.135]
[1757704485934,0.1256,4620.5,4620.2,0.135]
[1757704486333,0.1905,4620.5,4620.2,0.135]
[1757704486528,0.309,4620.4,4620.2,0.135]
[1757704487736,0.1905,4620.5,4620.2,0.135]
[1757704487936,0.309,4620.4,4620.2,0.135]
[1757704488242,0.1905,4620.5,4620.2,0.135]
[1757704488434,0.4995,4620.5,4620.2,0.135]
[1757704488635,0.1905,4620.5,4620.2,0.135]
[1757704488939,0.309,4620.4,4620.2,0.135]
[1757704489527,0.1905,4620.5,4620.2,0.135]
[1757704490640,0.309,4620.4,4620.2,0.135]
[1757704490838,0.1905,4620.5,4620.2,0.135]
[1757704491035,0.309,4620.4,4620.2,0.135]
[1757704493751,0.5018,4620.4,4620.2,0.135]
[1757704494451,0.309,4620.4,4620.2,0.135]
[1757704494753,0.19280001,4621.0,4620.3,4.0]
[1757704494949,0.19280001,4621.0,4620.2,0.52437]
[1757704495154,0.19280001,4621.0,4620.2,0.135]
[1757704496051,0.19280001,4621.0,4620.2,31.297]
[1757704496251,0.19280001,4621.0,4620.3,2.77297312]
[1757704496849,0.309,4620.9,4620.3,2.77297312]
[1757704497045,0.5018,4620.9,4620.3,2.77297312]
[1757704497654,1e-08,4621.0,4620.3,2.77297312]
[1757704498457,0.2966,4620.4,4620.2,31.297]
[1757704498856,0.1138,4620.5,4620.2,31.297]
[1757704499061,0.2966,4620.4,4620.2,31.297]
[1757704499256,0.1138,4620.5,4620.2,31.297]
[1757704499461,0.2966,4620.4,4620.2,31.297]
[1757704501059,0.1138,4620.5,4620.2,31.297]
[1757704501262,0.2966,4620.4,4620.2,31.297]
[1757704501562,0.4958,4620.3,4620.2,31.162]
[1757704501760,0.4958,4620.3,4620.2,31.381]
[1757704502063,0.2966,4620.3,4620.2,31.381]
[1757704503963,0.2966,4620.4,4620.2,31.381]
[1757704505264,0.1138,4620.5,4620.2,31.381]
[1757704505852,0.2966,4620.3,4620.2,31.162]
[1757704506055,1e-08,4621.0,4620.3,0.219]
[1757704507063,1e-08,4621.0,4620.3,3.32150382]
[1757704507464,1e-08,4621.0,4620.4,2.71314382]
[1757704507958,0.29660001,4621.0,4620.4,2.71314382]
[1757704508356,0.19920001,4621.0,4620.4,2.71314382]
[1757704508663,1e-08,4621.0,4620.4,2.71314382]
[1757704509062,0.4104,4620.5,4620.4,2.71314382]
[1757704509255,1e-08,4621.0,4620.5,0.2499]
[1757704509453,1e-08,4621.0,4620.6,0.219]
[1757704510266,0.3897,4621.5,4620.7,0.2499]
[1757704510456,0.5961,4621.5,4621.4,0.4042]
[1757704510762,0.5961,4621.5,4621.4,0.6232]
[1757704511262,0.8927,4621.5,4621.4,0.6232]
[1757704512962,0.6214,4621.5,4621.4,0.8731]
[1757704513167,0.1138,4622.5,4621.4,0.6232]
[1757704513465,0.4958,4621.9,4621.8,0.4042]
[1757704513758,0.4958,4621.9,4621.8,0.6232]
[1757704514557,0.7022,4621.9,4621.8,0.6232]
[1757704514762,0.7022,4621.9,4621.8,1.26234]
[1757704515253,0.2966,4621.9,4621.8,1.26234]
[1757704515463,0.7022,4622.4,4622.3,0.4042]
[1757704515664,0.7022,4622.4,4622.3,0.6232]
[1757704516466,0.7022,4622.4,4622.3,0.219]
[1757704519267,0.7022,4622.4,4622.3,0.4261]
[1757704519767,0.7022,4622.4,4622.3,0.219]
[1757704524868,0.1247,4621.5,4621.4,0.2071]
[1757704525059,0.5398,4621.5,4621.0,2.71314382]
[1757704525260,0.4151,4621.2,4621.1,0.219]
[1757704525463,0.7285,4621.2,4621.1,0.219]
[1757704528466,0.7204,4621.1,4621.0,0.4728]
[1757704528670,0.121,4621.0,4620.0,0.1]
[1757704528970,0.121,4621.0,4618.7,5.57150607]
[1757704528971,0.7204,4620.1,4619.4,2.71314382]
[1757704529176,0.7204,4619.5,4619.4,3.20774382]
[1757704529477,0.4078,4619.5,4619.4,0.7007]
[1757704532080,0.3126,4620.4,4619.8,0.4145]
[1757704532283,0.7204,4620.4,4620.3,0.2084]
[1757704532576,0.1997,4620.4,4620.3,0.7007]
[1757704532774,0.1997,4620.4,4620.3,0.9197]
[1757704533075,0.7204,4620.4,4620.3,0.219]
[1757704533474,0.7204,4620.4,4620.3,0.4946]
[1757704533669,0.7204,4620.4,4619.9,0.501]
[1757704533670,0.8178,4620.0,4619.9,0.501]
[1757704533879,0.7204,4620.0,4619.9,0.9956]
[1757704535579,0.8178,4620.0,4619.9,0.501]
[1757704536177,0.3126,4619.9,4619.6,0.5052]
[1757704536375,0.7204,4619.7,4619.6,0.7136]
[1757704537072,0.7204,4619.7,4619.6,0.9197]
[1757704537482,0.4078,4619.7,4619.6,0.9197]
[1757704537690,0.7204,4619.7,4619.6,0.9197]
[1757704539382,0.7204,4619.7,4619.6,0.7007]
[1757704540377,0.3126,4620.9,4619.7,0.2862]
[1757704544780,0.4078,4619.8,4619.7,0.7007]
[1757704545182,0.7204,4619.8,4619.7,0.7007]
[1757704545487,0.7204,4619.8,4619.7,0.4946]
[1757704545687,0.7204,4619.8,4619.2,0.536]
[1757704545883,0.3126,4619.7,4619.3,0.2862]
[1757704546082,0.7204,4619.4,4619.3,0.2862]
[1757704546291,0.7204,4619.4,4619.3,0.4946]
[1757704547892,0.7204,4619.4,4619.2,0.317]
[1757704548098,0.0632,4618.2,4618.1,0.2862]
[1757704548294,0.0829,4618.1,4618.0,0.1]
[1757704548489,0.0632,4618.1,4617.0,0.1]
[1757704549787,0.0632,4618.1,4617.0,0.2236]
[1757704549984,0.0632,4618.1,4617.1,0.2974]
[1757704550388,0.0632,4618.1,4617.2,0.3595]
[1757704551190,0.0632,4618.1,4617.3,0.2974]
[1757704551789,0.0632,4618.1,4618.0,0.421]
[1757704551985,0.0632,4618.1,4618.0,0.6124]
[1757704552998,0.0632,4618.1,4618.0,0.8188]
[1757704554693,0.0632,4618.1,4617.6,0.2974]
[1757704554999,0.0632,4618.1,4617.5,0.1236]
[1757704555401,0.0632,4618.1,4617.6,0.2974]
[1757704555591,0.0632,4618.1,4617.5,0.1236]
[1757704556300,0.0632,4618.1,4617.2,0.3595]
[1757704557101,4.0,4618.0,4617.2,0.3595]
[1757704557395,20.4,4619.2,4617.2,0.3595]
[1757704557396,0.22,4617.9,4617.2,0.3595]
[1757704557601,0.22,4617.8,4617.2,0.3595]
[1757704557798,20.4,4617.7,4617.2,0.3595]
[1757704558000,24.4,4617.7,4617.2,0.3595]
[1757704558295,20.4,4617.7,4617.0,0.1]
[1757704558497,0.22765749,4617.6,4617.0,0.1]
[1757704558696,0.22765684,4617.5,4617.0,0.1]
[1757704558995,0.22754144,4617.4,4617.0,0.2233]
[1757704559198,0.22754144,4617.3,4617.0,0.2233]
[1757704559398,0.22754144,4617.2,4617.0,0.2233]
[1757704559603,4.0,4617.6,4617.0,0.2233]
[1757704559901,0.22739376,4617.5,4617.0,0.5328]
[1757704560198,20.4,4617.7,4617.1,0.3095]
[1757704560199,0.22739376,4617.4,4617.1,0.3095]
[1757704560390,0.221,4617.3,4617.2,0.1959]
[1757704560591,0.221,4617.3,4617.2,0.5054]
[1757704560898,0.22734029,4617.3,4617.2,0.5054]
[1757704561096,0.448338,4617.3,4617.2,0.4035]
[1757704561505,0.448338,4617.3,4617.2,0.713]
[1757704562205,1.16450959,4618.7,4617.2,0.713]
[1757704562403,1.01896124,4618.6,4618.5,0.4328]
[1757704562704,0.3704,4617.6,4617.0,0.2233]
[1757704562904,0.3704,4617.1,4617.0,0.4192]
[1757704563098,0.1852,4617.1,4617.0,0.6268]
[1757704563601,0.221,4617.5,4617.1,0.3095]
[1757704563798,0.61987116,4617.4,4617.3,0.1959]
[1757704564114,0.61987116,4617.4,4617.3,0.713]
[1757704566603,1.16450959,4618.8,4617.3,0.4035]
[1757704566801,0.40691665,4618.7,4617.6,0.3095]
[1757704567007,0.7009,4617.6,4617.5,0.5054]
[1757704567201,0.92683682,4617.6,4617.5,0.5054]
[1757704567702,0.92683682,4617.6,4617.1,0.3095]
[1757704567909,0.3966,4617.2,4617.1,0.5054]
[1757704568109,0.92683682,4617.2,4617.1,0.5054]
[1757704568407,0.7009,4617.1,4617.0,0.1]
[1757704568601,0.92683682,4617.1,4617.0,0.1]
[1757704571107,0.92683682,4617.1,4617.0,0.6054]
[1757704572108,0.92683682,4617.1,4617.0,0.2959]
[1757704572406,0.92683682,4617.1,4617.0,0.6054]
[1757704572898,0.92683682,4617.1,4617.0,0.1]
[1757704573095,0.62253682,4617.1,4617.0,0.813]
[1757704573299,0.22593682,4617.1,4617.0,0.9363]
[1757704573508,0.22593682,4617.1,4617.0,0.6268]
[1757704573899,0.22593682,4617.6,4617.0,0.6268]
[1757704574096,0.42283682,4617.5,4617.4,0.4035]
[1757704574299,0.42283682,4617.5,4617.4,0.713]
[1757704574712,0.22593682,4617.5,4617.4,0.713]
[1757704574901,0.2859,4617.9,4617.4,0.4035]
[1757704575100,0.40513626,4617.8,4617.7,0.1959]
[1757704575310,0.60483626,4617.8,4617.7,0.1959]
[1757704575605,0.0649,4617.9,4617.7,0.713]
[1757704575807,0.0649,4617.9,4617.8,0.3095]
[1757704576008,0.46411657,4617.9,4617.8,0.713]
[1757704576308,0.90321657,4617.9,4617.8,0.713]
[1757704577211,2.45970237,4617.9,4617.8,0.713]
[1757704577401,0.90321657,4617.9,4617.8,0.713]
[1757704577603,2.45418941,4617.9,4617.8,0.713]
[1757704577902,0.20231657,4617.9,4617.8,0.713]
[1757704578103,1.16318626,4618.0,4617.9,0.713]
[1757704578306,1.36628572,4618.0,4617.9,0.713]
[1757704578503,1.36798786,4618.0,4617.9,0.713]
[1757704578701,1.77573277,4618.0,4617.9,0.713]
[1757704579113,0.61084437,4618.0,4617.9,0.713]
[1757704585508,1.31174437,4618.0,4617.9,0.1959]
[1757704585914,1.31174437,4618.0,4617.9,0.713]
[1757704588020,0.7009,4618.0,4617.9,0.713]
[1757704590412,0.7009,4618.0,4617.9,0.5054]
[1757704591113,0.6831,4617.6,4617.5,0.4118]
[1757704591717,0.6831,4617.6,4617.5,0.907]
[1757704592908,0.6831,4617.6,4617.5,0.4952]
[1757704594326,0.3984,4617.6,4617.5,0.8178]
[1757704595620,0.0649,4617.8,4617.5,0.8178]
[1757704595820,0.0649,4617.8,4617.7,0.7021]
[1757704596030,0.2847,4619.0,4617.8,0.2997]
[1757704596228,1.48964492,4618.9,4618.8,0.7021]
[1757704596424,0.8833813,4618.9,4618.8,0.7021]
[1757704596722,0.2847,4619.3,4618.8,0.7021]
[1757704596912,1.19619016,4619.2,4619.1,0.4024]
[1757704597118,0.2007,4619.2,4619.1,0.7021]
[1757704598117,0.3984,4620.0,4619.9,0.7021]
[1757704598817,0.7986,4620.0,4619.1,0.2997]
[1757704600715,0.2007,4619.2,4619.1,0.7021]
[1757704601121,0.6831,4619.2,4619.1,0.7021]
[1757704602732,0.2847,4619.7,4619.2,0.2997]
[1757704602929,0.6831,4619.7,4619.6,0.4952]